[Event "Croatian-ch Youth U15 2022"]
[Site "Trogir"]
[Date "2022.06.22"]
[Round "2.11"]
[White "Friscic, Laura"]
[Black "Zovko, Josipa"]
[Result "0-1"]
[ECO "C01"]
[WhiteElo "1106"]
[BlackElo "1419"]
[Annotator "NA RC"]
[PlyCount "86"]
[EventDate "2022.06.22"]
[EventType "swiss"]
[EventCountry "CRO"]
[SourceTitle "playchess.com"]
[Source "ChessBase"]
[SourceQuality "1"]
[TimeControl "5400+30"]

1. c4 {[%emt 0:00:06]} e6 {[%emt 0:00:45]} 2. e4 {[%emt 0:00:33]} d5 {[%emt 0:02:39]} 3. exd5 {[%emt 0:00:16]} exd5 {[%emt 0:00:12]} 4. d4 {[%emt 0:00:24]} c6 {[%emt 0:05:03]} 5. Nc3 {[%emt 0:01:58]} Bb4 {[%emt 0:05:42]} 6. Bd2 {[%emt 0:03:13]} Nf6 {[%emt 0:05:27]} 7. Nf3 {[%emt 0:01:38]} O-O {[%emt 0:01:38]} 8. Be2 {[%emt 0:02:26]} dxc4 {[%emt 0:05:25]} 9. Bxc4 {[%emt 0:00:39]} Re8+ {[%emt 0:02:06]} 10. Ne2 {[%emt 0:03:14]} Bxd2+ {[%emt 0:05:06]} 11. Qxd2 {[%emt 0:01:47]} Bg4 {[%emt 0:04:51]} 12. Ne5 {[%emt 0:02:52]} Be6 {[%emt 0:04:10]} 13. Qb4 {[%emt 0:02:54]} Qe7 {[%emt 0:07:08]} 14. Qb3 {[%emt 0:02:53]} Bxc4 {[%emt 0:05:18]} 15. Qxc4 {[%emt 0:00:14]} Nd5 {[%emt 0:05:11]} 16. a3 {[%emt 0:11:46]} Kf8 {[%emt 0:07:55]} 17. g3 {[%emt 0:07:02]} f6 {[%emt 0:02:51]} 18. Nf3 {[%emt 0:01:12]} Qe4 {[%emt 0:01:48]} 19. Kd2 {[%emt 0:13:10]} Qxf3 {[%emt 0:00:49]} 20. Rhf1 {[%emt 0:02:44]} Nd7 {[%emt 0:02:46]} 21. Rae1 {[%emt 0:01:08]} N7b6 {[%emt 0:05:07]} 22. Qc2 {[%emt 0:04:07]} Qe4 {[%emt 0:02:39]} 23. Qc5+ {[%emt 0:01:32]} Qe7 {[%emt 0:02:16]} 24. Qc2 {[%emt 0:00:46]} Kg8 {[%emt 0:00:56]} 25. Nc3 {[%emt 0:01:29]} Qf7 {[%emt 0:01:51]} 26. Qb3 {[%emt 0:02:06]} Nxc3 {[%emt 0:01:02]} 27. Qxf7+ {[%emt 0:02:41]} Kxf7 {[%emt 0:00:11]} 28. bxc3 {[%emt 0:00:26]} Nc4+ {[%emt 0:02:04]} 29. Kd3 {[%emt 0:01:17]} Nxa3 {[%emt 0:00:16]} 30. c4 {[%emt 0:00:28]} b5 {[%emt 0:00:05]} 31. cxb5 {[%emt 0:00:36]} cxb5 {[%emt 0:00:55]} 32. Ra1 {[%emt 0:00:23]} b4 {[%emt 0:00:35]} 33. Ra2 {[%emt 0:01:20]} a5 {[%emt 0:00:49]} 34. Rc1 {[%emt 0:00:37]} Rec8 {[%emt 0:00:23]} 35. Re1 {[%emt 0:01:03]} Rab8 {[%emt 0:00:46]} 36. Kd2 {[%emt 0:00:45]} Nc4+ {[%emt 0:01:14]} 37. Kd3 {[%emt 0:00:18]} b3 {[%emt 0:00:19]} 38. Rae2 {[%emt 0:00:37]} Rc7 {[%emt 0:01:51]} 39. Rc1 {[%emt 0:00:39]} b2 {[%emt 0:01:21]} 40. Rb1 {[%emt 0:00:24]} a4 {[%emt 0:00:42]} 41. Rc2 {[%emt 0:01:19]} a3 {[%emt 0:00:41]} 42. Rxc4 {[%emt 0:00:20]} Rxc4 {[%emt 0:00:06]} 43. Kxc4 {[%emt 0:00:11]} a2 {[%emt 0:00:02]} 0-1

[Event "Croatian-ch Youth U15 2022"]
[Site "Trogir"]
[Date "2022.06.23"]
[Round "3.1"]
[White "Horcicka, Jan"]
[Black "Grgantov, Marin"]
[Result "1/2-1/2"]
[ECO "C50"]
[WhiteElo "1804"]
[BlackElo "2081"]
[Annotator "TA"]
[PlyCount "55"]
[EventDate "2022.06.22"]
[EventType "swiss"]
[EventCountry "CRO"]
[SourceTitle "playchess.com"]
[Source "ChessBase"]
[SourceQuality "1"]
[TimeControl "5400+30"]

{[%evp 12,55,13,0,0,0,0,-11,0,-22,0,-22,-14,-53,-61,-49,-29,-62,0,0,0,0,0,0,16,2,13,-18,0,-16,-8,-29,-36,-22,0,0,0,0,0,0,0,0,0,0,0,0]} 1. e4 {[%emt 0:00:04]} e5 {[%emt 0:00:10]} 2. Nf3 {[%emt 0:00:07]} Nc6 {[%emt 0:00:05]} 3. Bc4 {[%emt 0:00:06]} Bc5 {[%emt 0:00:09]} 4. Nc3 {[%emt 0:00:13]} d6 {[%emt 0:00:35]} 5. h3 {[%emt 0:00:13]} Nf6 {[%emt 0:01:33]} 6. d3 {[%emt 0:00:07]} h6 {[%emt 0:00:25]} 7. Bd2 {[%emt 0:00:05] Recently 7.Na4 got a lot of attention.} a6 {[%emt 0:02:44] C50: Hungarian Defence and Giuoco Pianissimo.} 8. a3 {[%emt 0:00:22]} Be6 {[%emt 0:04:15]} 9. Ba2 {[%emt 0:07:07]} Qd7 {[%emt 0:09:56]} 10. Qe2 {[%emt 0:01:55] [#]} Ne7 $146 {[%emt 0:03:13]} ({Predecessor:} 10... Bxa2 11. Nxa2 Qe6 12. b4 Bb6 13. c4 Nd4 14. Nxd4 Bxd4 15. Nc3 c6 16. Rc1 O-O {½-½ (30) Skaale,J (1835)-Hansen,H (1971) Faroe Islands 2020}) 11. Nd1 {[%emt 0:07:24]} Ng6 {[%emt 0:08:39]} 12. c3 {[%emt 0:04:03]} Bxa2 {[%emt 0:01:09]} 13. Rxa2 {[%emt 0:00:31]} d5 {[%emt 0:06:59]} 14. d4 {[%emt 0:07:23]} dxe4 {[%emt 0:16:35]} (14... Be7 $15) 15. Nxe5 $11 {[%emt 0:03:12]} Qe6 {[%emt 0:03:37][%csl LRa2,LRe5]} 16. Nxg6 {[%emt 0:00:58]} fxg6 {[%emt 0:00:22]} 17. Ra1 {[%emt 0:00:46]} Bb6 {[%emt 0:01:00]} 18. Ne3 {[%emt 0:01:16][%cal Bd1e3,Be3c4,Bc4e5][%mdl 32]} O-O {[%emt 0:01:12]} 19. Nc4 {[%emt 0:04:57]} Ba7 {[%emt 0:00:17]} 20. Ne5 {[%emt 0:01:13]} Kh7 {[%emt 0:00:45]} 21. O-O {[%emt 0:01:50]} c5 {[%emt 0:01:08]} 22. Be3 {[%emt 0:00:52]} cxd4 {[%emt 0:01:21] The position is equal.} 23. Bxd4 {[%emt 0:01:28]} Bxd4 {[%emt 0:01:55]} 24. cxd4 {[%emt 0:02:30]} Rad8 {[%emt 0:02:29]} 25. Rfd1 {[%emt 0:00:00]} Rd5 {[%emt 0:06:11]} 26. Rac1 {[%emt 0:00:31]} Rc8 {[%emt 0:10:05]} 27. Qe3 {[%emt 0:04:32]} Rdd8 {[%emt 0:03:47]} 28. Kh2 {[%emt 0:11:52] Weighted Error Value: White=0.12 (very precise) /Black=0.09 (flawless)} 1/2-1/2

[Event "Croatian-ch Youth U15 2022"]
[Site "Trogir"]
[Date "2022.06.23"]
[Round "3.2"]
[White "Konjevic, Nikola"]
[Black "Colev, Ivor"]
[Result "0-1"]
[ECO "B07"]
[WhiteElo "1708"]
[BlackElo "1984"]
[Annotator "TA"]
[PlyCount "80"]
[EventDate "2022.06.22"]
[EventType "swiss"]
[EventCountry "CRO"]
[SourceTitle "playchess.com"]
[Source "ChessBase"]
[SourceQuality "1"]
[TimeControl "5400+30"]

{[%evp 10,80,81,5,77,46,64,60,60,50,90,57,79,50,75,60,99,47,67,69,88,71,99,37,39,31,87,17,68,84,215,82,68,88,92,0,41,-87,-70,-114,-119,-128,-126,-133,-131,-133,-131,-137,-106,-297,-308,-257,-305,-249,-300,-270,-262,-456,-444,-458,-447,-475,-488,-480,-472,-517,-477,-467,-464,-462,-445,-29992,-29993]} 1. e4 {[%emt 0:01:26]} c5 {[%emt 0:00:05]} 2. c3 {[%emt 0:00:08]} d6 {[%emt 0:00:10]} 3. d4 {[%emt 0:00:54]} Nf6 {[%emt 0:00:06]} 4. Bd3 {[%emt 0:06:13]} Nc6 {[%emt 0:00:28]} 5. Nf3 {[%emt 0:01:36]} Bg4 {[%emt 0:00:07]} 6. Be3 {[%emt 0:00:14]} (6. d5 $1 $16 {[%cal Rd5c6]} Bxf3 7. Qxf3) 6... g6 {[%emt 0:01:40] B07: Pirc Defence: Miscellaneous Systems.} (6... d5 $11) 7. Nbd2 {[%emt 0:07:12] [#]} (7. d5 $5 {[%cal Rd5c6]} Bxf3 8. Qxf3 $14 (8. gxf3 Ne5 $14)) 7... Nd7 $146 {[%emt 0:05:27]} ({Predecessor:} 7... Bg7 8. h3 Bxf3 9. Nxf3 O-O 10. dxc5 dxc5 11. Bxc5 Nh5 12. Be3 Qd6 13. Bc2 Rfd8 14. Qxd6 Rxd6 {1-0 (42) Kaptijn,J (1624)-Verzijden,M (1339) Hengelo 2005}) 8. h3 {[%emt 0:03:47]} Bxf3 {[%emt 0:00:09] White is slightly better.} 9. Nxf3 {[%emt 0:00:01]} ({Of course not} 9. Qxf3 cxd4 10. cxd4 Bg7 $11) 9... Bg7 {[%emt 0:00:27]} 10. O-O {[%emt 0:06:13]} O-O {[%emt 0:03:37]} 11. Rc1 {[%emt 0:03:05]} Rb8 {[%emt 0:04:43]} 12. Qd2 {[%emt 0:15:22]} Re8 {[%emt 0:09:50]} 13. Bb5 {[%emt 0:04:51]} (13. b4 $16) 13... Qb6 {[%emt 0:04:55]} 14. Be2 {[%emt 0:05:53]} Qc7 {[%emt 0:03:12]} 15. Rfd1 {[%emt 0:01:49]} b5 {[%emt 0:09:45]} 16. e5 {[%emt 0:09:14]} (16. b4 $16) 16... dxe5 $14 {[%emt 0:03:47]} 17. dxc5 {[%emt 0:00:56]} Red8 {[%emt 0:01:27]} (17... Nf6 $14) 18. Qe1 {[%emt 0:05:10]} ({Better is} 18. Qc2 $1 $16) 18... a6 {[%emt 0:02:05]} (18... e4 $11 19. Nd4 Nxd4 20. cxd4 Nf6) 19. b4 {[%emt 0:00:34]} f5 {[%emt 0:05:40]} (19... e4 $16 {was called for.}) 20. Rc2 {[%emt 0:00:37]} (20. a4 $18 {has better winning chances.}) 20... e4 {[%emt 0:14:50]} 21. Nd4 {[%emt 0:01:47]} Nxd4 {[%emt 0:00:14]} 22. cxd4 {[%emt 0:05:03]} ({White should try} 22. Bxd4 $16 Bxd4 23. Rxd4) 22... Nf6 {[%emt 0:00:17]} (22... Nb6 $5) 23. c6 {[%emt 0:03:47]} (23. a4 $14 {keeps the upper hand.}) 23... Nd5 $1 $17 {[%emt 0:01:07] Black converts the advantage convincingly.} 24. Rc5 {[%emt 0:02:33] [#]} e6 $1 {[%emt 0:00:58]} 25. a3 {[%emt 0:00:59]} Rd6 {[%emt 0:04:15]} 26. g3 {[%emt 0:02:09]} Rxc6 {[%emt 0:01:05]} 27. Rdc1 {[%emt 0:00:01]} Rxc5 {[%emt 0:00:38]} 28. Rxc5 {[%emt 0:01:07]} Qd6 {[%emt 0:01:22] Black is more active.} 29. Kg2 $2 {[%emt 0:02:03] [#]} (29. Qc1 $17) 29... f4 $1 $19 {[%emt 0:10:45]} 30. gxf4 {[%emt 0:03:03] [#]} Bxd4 $1 {[%emt 0:00:19][%mdl 512]} 31. Bxd4 {[%emt 0:00:29]} Nxf4+ {[%emt 0:00:05][%mdl 64] Discovered Attack} 32. Kh1 {[%emt 0:00:49]} Qxd4 {[%emt 0:00:08]} 33. Bg4 $2 {[%emt 0:03:07]} (33. Bf1 {only move.}) 33... Rf8 {[%emt 0:07:24] Strongly threatening ...h5.} ({But not} 33... h5 $2 34. Qe3 Qa1+ 35. Rc1 $19) 34. Qe3 {[%emt 0:01:56]} Qf6 {[%emt 0:03:31] White must now prevent ...Nd3.} 35. Qxe4 {[%emt 0:01:50]} h5 {[%emt 0:00:14]} 36. Be2 {[%emt 0:02:01]} Nxh3 {[%emt 0:00:30]} 37. Qe3 {[%emt 0:00:29]} Nxf2+ {[%emt 0:01:08]} 38. Kg2 {[%emt 0:00:31]} Ng4 {[%emt 0:01:27]} 39. Bxg4 {[%emt 0:00:09]} hxg4 {[%emt 0:00:11]} 40. Rc6 {[%emt 0:00:49]} (40. Qe1 $19) 40... Qf1+ {[%emt 0:00:14] Weighted Error Value: White=0.64/Black=0.18 (very precise)} 0-1

[Event "Croatian-ch Youth U15 2022"]
[Site "Trogir"]
[Date "2022.06.23"]
[Round "3.3"]
[White "Sundac, Ivano"]
[Black "Rautner, Fran"]
[Result "1-0"]
[ECO "A49"]
[WhiteElo "1978"]
[BlackElo "1753"]
[Annotator "TA"]
[PlyCount "77"]
[EventDate "2022.06.22"]
[EventType "swiss"]
[EventCountry "CRO"]
[SourceTitle "playchess.com"]
[Source "ChessBase"]
[SourceQuality "1"]
[TimeControl "5400+30"]

{[%evp 14,77,47,42,38,36,52,56,58,0,13,11,23,0,14,0,28,22,40,17,23,22,27,20,35,32,27,27,46,29,105,103,96,96,118,111,110,102,165,114,104,109,131,124,182,124,168,169,215,157,159,166,155,121,151,156,154,145,133,153,264,266,663,647,688,652]} 1. d4 {[%emt 0:00:03]} Nf6 {[%emt 0:00:05]} 2. Nf3 {[%emt 0:00:07]} g6 {[%emt 0:00:18]} 3. g3 {[%emt 0:00:04]} Bg7 {[%emt 0:00:23]} 4. Bg2 {[%emt 0:00:07]} O-O {[%emt 0:00:06]} 5. O-O {[%emt 0:00:06]} d6 {[%emt 0:00:30]} 6. b3 {[%emt 0:00:05]} e5 {[%emt 0:07:43]} 7. dxe5 {[%emt 0:00:05]} Ng4 {[%emt 0:07:16]} 8. Bb2 {[%emt 0:01:00]} Nxe5 {[%emt 0:01:02] A49: 1 d4 Nf6 2 Nf3 g6 3 g3: Anti-King's Indian systems.} 9. Nxe5 {[%emt 0:00:42]} Bxe5 {[%emt 0:00:26]} 10. Bxe5 {[%emt 0:00:36]} dxe5 {[%emt 0:00:02] [#] White is slightly better.} 11. c4 $146 {[%emt 0:00:37]} ({Better is} 11. Qxd8 $14 Rxd8 12. Nc3) ({Predecessor:} 11. Qxd8 Rxd8 12. c4 c6 13. Nc3 Na6 14. Rfd1 Bf5 15. Be4 Be6 16. Rxd8+ Rxd8 17. Rd1 Rxd1+ 18. Nxd1 Kf8 19. f4 exf4 20. gxf4 Ke7 21. Kf2 Kd6 {½-½ (21) Varga,Z (2389)-Horvath,A (2491) Budapest 2021}) 11... Qe7 {[%emt 0:17:46]} 12. Nc3 {[%emt 0:02:29]} c6 {[%emt 0:00:41]} 13. Qc2 {[%emt 0:01:56]} Nd7 {[%emt 0:09:44]} 14. Rad1 {[%emt 0:03:00]} Nf6 {[%emt 0:00:30]} 15. Qd2 {[%emt 0:01:51]} Kg7 {[%emt 0:05:55]} 16. Qd6 {[%emt 0:04:32]} Qxd6 {[%emt 0:04:27]} 17. Rxd6 {[%emt 0:00:06]} Be6 {[%emt 0:01:48]} 18. Rfd1 {[%emt 0:01:17]} Rac8 {[%emt 0:05:51]} 19. Na4 {[%emt 0:01:04]} Rc7 {[%emt 0:08:09]} 20. Nc5 {[%emt 0:02:39]} Bg4 {[%emt 0:01:29]} 21. R1d2 {[%emt 0:03:06]} Re8 {[%emt 0:01:14] [#]} (21... Bc8 $11 {keeps the balance.}) 22. Nxb7 $1 $16 {[%emt 0:12:25][%mdl 512] White is more active.} Rxb7 {[%emt 0:00:17]} 23. Bxc6 {[%emt 0:00:05]} Rbe7 {[%emt 0:04:34]} 24. Bxe8 {[%emt 0:00:22]} Nxe8 {[%emt 0:04:57]} 25. Ra6 {[%emt 0:01:37]} Be6 {[%emt 0:00:54]} (25... Nf6 $16 {was called for.}) 26. c5 {[%emt 0:02:22]} ({White should play} 26. Rd8 $18) 26... Rc7 {[%emt 0:00:57]} 27. b4 {[%emt 0:01:49]} Bc4 {[%emt 0:02:20]} 28. Ra5 {[%emt 0:06:18]} Kf8 {[%emt 0:03:13]} (28... Be6 $16 29. e4 Nf6) 29. Rc2 {[%emt 0:06:02]} (29. f3 $18) 29... Bd5 {[%emt 0:01:15]} 30. c6 {[%emt 0:01:36]} Be4 {[%emt 0:02:26]} (30... Nf6 $142 31. f3 e4) 31. Rcc5 {[%emt 0:03:40]} f6 {[%emt 0:01:14]} 32. f3 {[%emt 0:00:22]} Bf5 {[%emt 0:03:25]} (32... Bxc6 $2 33. b5 $18) 33. b5 {[%emt 0:02:27]} Nd6 {[%emt 0:01:14]} 34. Ra4 {[%emt 0:00:46]} Be6 {[%emt 0:01:06]} 35. a3 {[%emt 0:00:20][%cal Ba2a3,Ba3a4,Ba4a5][%mdl 32]} Ke7 {[%emt 0:01:47]} 36. Rb4 {[%emt 0:00:27]} Bf7 {[%emt 0:01:10]} (36... Rc8 $16 37. Ra4 Rc7) 37. a4 $18 {[%emt 0:00:24]} Nf5 $2 {[%emt 0:01:43]} (37... Be8 38. a5 Bd7) 38. a5 {[%emt 0:01:50]} Be8 {[%emt 0:00:39]} 39. b6 {[%emt 0:00:44] Weighted Error Value: White=0.10 (very precise) /Black=0.36} 1-0

[Event "Croatian-ch Youth U15 2022"]
[Site "Trogir"]
[Date "2022.06.23"]
[Round "3.4"]
[White "Babler, Jan"]
[Black "Gal, Andrej"]
[Result "0-1"]
[ECO "B65"]
[WhiteElo "1616"]
[BlackElo "1874"]
[Annotator "NA RC"]
[PlyCount "76"]
[EventDate "2022.06.22"]
[EventType "swiss"]
[EventCountry "CRO"]
[SourceTitle "playchess.com"]
[Source "ChessBase"]
[SourceQuality "1"]
[TimeControl "5400+30"]

{[%evp 41,75,0,0,-18,-8,-146,-75,32767,32767,-108,-119,-167,-148,32767,32767,-288,-315,-311,-343,-357,-352,-346,-395,-1041,-1522,-1790,-5929,-3089,-6216,-5289,-645,-6789,-1957,-1686,-5189,-1833]} 1. e4 {[%emt 0:00:03]} c5 {[%emt 0:00:09]} 2. Nf3 {[%emt 0:00:06]} d6 {[%emt 0:00:06]} 3. d4 {[%emt 0:00:05]} cxd4 {[%emt 0:00:06]} 4. Nxd4 {[%emt 0:00:02]} Nf6 {[%emt 0:00:06]} 5. Nc3 {[%emt 0:00:06]} Nc6 {[%emt 0:00:09]} 6. Bg5 {[%emt 0:00:06]} e6 {[%emt 0:00:14]} 7. Qd2 {[%emt 0:00:08]} Be7 {[%emt 0:00:08]} 8. O-O-O {[%emt 0:00:09]} O-O {[%emt 0:00:07]} 9. f4 {[%emt 0:00:08]} Nxd4 {[%emt 0:03:25]} 10. Qxd4 {[%emt 0:00:01]} Qa5 {[%emt 0:00:10]} 11. Bc4 {[%emt 0:01:05]} Bd7 {[%emt 0:01:07]} 12. e5 {[%emt 0:05:08]} dxe5 {[%emt 0:00:15]} 13. fxe5 {[%emt 0:00:03]} Bc6 {[%emt 0:00:12]} 14. Bd2 {[%emt 0:01:29]} Nd7 {[%emt 0:00:10]} 15. Nd5 {[%emt 0:00:17]} Qd8 {[%emt 0:00:06]} 16. Nxe7+ {[%emt 0:00:09]} Qxe7 {[%emt 0:00:03]} 17. h4 {[%emt 0:07:59]} Rac8 {[%emt 0:24:35]} 18. Bb3 {[%emt 0:07:07]} b6 {[%emt 0:09:01]} 19. Bb4 {[%emt 0:04:12]} Nc5 {[%emt 0:00:35]} 20. Bxc5 {[%emt 0:16:30]} bxc5 {[%emt 0:00:23]} 21. Qg4 {[%emt 0:03:59]} Rfd8 {[%emt 0:07:56]} 22. h5 {[%emt 0:05:14]} h6 {[%emt 0:01:29]} 23. Kb1 {[%emt 0:01:01] [#]} (23. c3 $11 {keeps the balance.}) 23... Qc7 {[%emt 0:03:29]} ({Black should play} 23... Qg5 $1 {[%cal Rg5g4]} 24. Qxg5 hxg5) 24. Qe2 {[%emt 0:11:49]} a5 {[%emt 0:04:16]} 25. Rhf1 {[%emt 0:08:37]} (25. Bc4 $15) 25... Qb7 {[%emt 0:04:10]} 26. Rxd8+ {[%emt 0:09:34]} (26. Rd6 $17) 26... Rxd8 {[%emt 0:00:02]} 27. Rd1 {[%emt 0:00:10]} Rb8 {[%emt 0:01:51]} 28. c3 {[%emt 0:04:36]} a4 {[%emt 0:06:16]} ({Weaker is} 28... Bxg2 29. Rg1 Bf3 30. Qh2 $17) 29. Bc4 {[%emt 0:00:23]} Bxg2 {[%emt 0:00:32]} 30. Rd2 {[%emt 0:02:07]} Bf3 {[%emt 0:00:42]} 31. Qf2 {[%emt 0:02:09]} Bxh5 {[%emt 0:02:37]} 32. Qxc5 {[%emt 0:04:03]} (32. Bd3 $142) 32... Qe4+ {[%emt 0:01:28]} 33. Kc1 {[%emt 0:02:03]} Qe1+ $19 {[%emt 0:01:07]} 34. Kc2 {[%emt 0:00:04]} Bg6+ {[%emt 0:00:08]} 35. Bd3 {[%emt 0:00:13] [#]} Rxb2+ $3 {[%emt 0:00:08]} 36. Kxb2 {[%emt 0:00:07]} Qxd2+ {[%emt 0:00:02]} 37. Ka3 {[%emt 0:00:05]} Qxd3 {[%emt 0:00:07]} 38. Qc8+ {[%emt 0:00:05]} Kh7 {[%emt 0:00:05]} 0-1

[Event "Croatian-ch Youth U15 2022"]
[Site "Trogir"]
[Date "2022.06.23"]
[Round "3.5"]
[White "Mandaric, Fran"]
[Black "Kurtovic, Darko"]
[Result "1-0"]
[ECO "C89"]
[WhiteElo "1808"]
[BlackElo "1353"]
[Annotator "NA RC"]
[PlyCount "95"]
[EventDate "2022.06.22"]
[EventType "swiss"]
[EventCountry "CRO"]
[SourceTitle "playchess.com"]
[Source "ChessBase"]
[SourceQuality "1"]
[TimeControl "5400+30"]

{[%evp 30,95,0,-129,-98,-156,-66,-60,-58,32767,32767,32767,32767,32767,32767,-43,-18,-28,-24,-34,32767,32767,32767,-122,-87,-137,-141,-163,-141,-160,-97,-216,-56,-303,-197,32767,-250,32767,32767,32767,-866,-761,-817,-770,32767,32767,116,115,126,15,32767,8,32767,10,81,83,154,167,175,187,172,216,235,253,288,327,354,356]} 1. e4 {[%emt 0:01:16]} e5 {[%emt 0:00:07]} 2. Nf3 {[%emt 0:00:05]} Nc6 {[%emt 0:00:04]} 3. Bb5 {[%emt 0:00:04]} a6 {[%emt 0:00:05]} 4. Ba4 {[%emt 0:00:04]} Nf6 {[%emt 0:00:04]} 5. d3 {[%emt 0:00:04]} b5 {[%emt 0:00:06]} 6. Bb3 {[%emt 0:00:04]} Be7 {[%emt 0:00:37]} 7. O-O {[%emt 0:00:26]} O-O {[%emt 0:00:17]} 8. c3 {[%emt 0:00:04]} d5 {[%emt 0:02:08]} 9. exd5 {[%emt 0:16:46]} Nxd5 {[%emt 0:00:10]} 10. Re1 {[%emt 0:00:22]} Bg4 {[%emt 0:00:29] The main line 10...Bg4 scores better than 10...Bf6.} 11. h3 {[%emt 0:00:36]} Bh5 {[%emt 0:00:19]} 12. g4 {[%emt 0:01:55]} Bg6 {[%emt 0:00:06]} 13. Nxe5 {[%emt 0:00:07]} Nxe5 {[%emt 0:00:13]} 14. Rxe5 {[%emt 0:00:06]} c6 {[%emt 0:00:15]} 15. Bxd5 {[%emt 0:02:57]} cxd5 {[%emt 0:00:07] [#]} 16. d4 $146 {[%emt 0:00:34] [#]} ({Predecessor:} 16. Qf3 $11 Bd6 17. Rxd5 Qc7 18. Be3 Rad8 19. Nd2 Bh2+ 20. Kh1 Bxd3 21. Rxd8 Rxd8 22. Bd4 {1-0 (70) Bivol,A (2368)-Szczepkowska,K (2407) Warsaw 2021}) 16... Bd6 $1 {[%emt 0:00:13]} 17. Rxd5 {[%emt 0:26:53] [#]} Bh2+ $1 {[%emt 0:00:34]} 18. Kxh2 {[%emt 0:00:06]} Qxd5 {[%emt 0:00:05]} 19. Bf4 {[%emt 0:03:01]} h5 {[%emt 0:02:48]} 20. Nd2 {[%emt 0:01:41]} hxg4 {[%emt 0:09:01]} 21. Qxg4 {[%emt 0:04:08]} Rfe8 {[%emt 0:05:28]} 22. Rg1 {[%emt 0:13:23]} Re6 {[%emt 0:00:55]} (22... Qxa2 $15 23. h4 Qd5) 23. h4 {[%emt 0:01:55]} Rae8 {[%emt 0:00:49]} ({Much less strong is} 23... Qxa2 24. h5 $16) 24. Rg2 {[%emt 0:06:35]} Qh5 {[%emt 0:11:52]} 25. Qg3 {[%emt 0:04:17]} Re1 {[%emt 0:02:28]} 26. Nf3 {[%emt 0:04:35]} Rf1 {[%emt 0:00:39]} 27. Ne5 {[%emt 0:01:00]} ({Better is} 27. Be3 $1 $15) 27... Qd1 {[%emt 0:00:10]} 28. Rg1 {[%emt 0:02:00]} Rxg1 {[%emt 0:01:52]} 29. Qxg1 {[%emt 0:00:06] [#]} Qh5 {[%emt 0:00:29]} (29... Qc2 $1 $19 30. b3 (30. Nxg6 fxg6 31. Qg2 Qxb2 $19) 30... Bf5) 30. Nxg6 {[%emt 0:02:21] [#]} (30. Qg5 $17) 30... fxg6 $2 {[%emt 0:00:07]} (30... Re2 $1 $19 31. b3 fxg6) 31. Qg5 $2 {[%emt 0:02:44]} (31. Kg3 $17) 31... Qf3 {[%emt 0:00:09]} 32. Be3 {[%emt 0:02:13]} Re4 {[%emt 0:01:26]} 33. Qg3 {[%emt 0:01:28]} Qh5 {[%emt 0:00:31]} 34. Kh3 {[%emt 0:00:50]} Qf5+ {[%emt 0:00:34]} 35. Kh2 {[%emt 0:00:22]} Rg4 {[%emt 0:00:10]} 36. Qh3 {[%emt 0:00:39]} Qe4 {[%emt 0:01:22]} 37. f3 {[%emt 0:00:16] [#]} Qxe3 $1 {[%emt 0:00:15]} 38. Qxg4 {[%emt 0:00:21]} Qf2+ {[%emt 0:00:08] [#]} 39. Qg2 {[%emt 0:00:08]} ({White has to play} 39. Kh3 $1 $16) 39... Qxh4+ {[%emt 0:00:06]} 40. Kg1 {[%emt 0:00:45]} Qe1+ {[%emt 0:00:06]} 41. Qf1 {[%emt 0:00:49]} Qg3+ {[%emt 0:00:38] [#]} (41... Qe3+ $11 42. Kg2 Qd2+ 43. Qf2 Qg5+ 44. Qg3 Qd2+ 45. Kh3 Qxb2 $11) 42. Kh1 $1 {[%emt 0:00:13]} Qh4+ {[%emt 0:00:05]} ({Black should try} 42... g5) 43. Kg2 {[%emt 0:00:14]} Qf4 {[%emt 0:01:00]} 44. Qe2 {[%emt 0:01:27]} Qg5+ {[%emt 0:00:44]} 45. Kf2 {[%emt 0:00:29]} Qh4+ {[%emt 0:00:32]} 46. Ke3 {[%emt 0:00:37]} Qg5+ $18 {[%emt 0:00:10] [#]} 47. Kd3 $1 {[%emt 0:00:26]} Qc1 {[%emt 0:00:07]} 48. Qe6+ {[%emt 0:00:00]} 1-0

[Event "Croatian-ch Youth U15 2022"]
[Site "Trogir"]
[Date "2022.06.23"]
[Round "3.6"]
[White "Mlinaric, Simun"]
[Black "Milinkovic, Dominik"]
[Result "1/2-1/2"]
[ECO "E01"]
[WhiteElo "1399"]
[BlackElo "1807"]
[Annotator "NA RC"]
[PlyCount "56"]
[EventDate "2022.06.22"]
[EventType "swiss"]
[EventCountry "CRO"]
[SourceTitle "playchess.com"]
[Source "ChessBase"]
[SourceQuality "1"]
[TimeControl "5400+30"]

1. d4 {[%emt 0:00:02]} d5 {[%emt 0:00:06]} 2. Nf3 {[%emt 0:00:08]} Nf6 {[%emt 0:00:06]} 3. g3 {[%emt 0:00:05]} e6 {[%emt 0:00:59]} 4. Bg2 {[%emt 0:00:06]} c5 {[%emt 0:00:09]} 5. O-O {[%emt 0:00:47]} Nc6 {[%emt 0:00:27]} 6. c4 {[%emt 0:00:37]} b6 {[%emt 0:08:39]} 7. Nc3 {[%emt 0:02:27]} Bb7 {[%emt 0:11:35]} 8. e3 {[%emt 0:10:24]} Be7 {[%emt 0:06:25]} 9. b3 {[%emt 0:01:13]} O-O {[%emt 0:00:24]} 10. Bb2 {[%emt 0:01:04]} Rc8 {[%emt 0:10:20]} (10... dxc4 $1 $15 11. Ne5 cxd4 12. exd4 Qc8) 11. cxd5 {[%emt 0:12:11]} Nxd5 {[%emt 0:08:23]} 12. dxc5 {[%emt 0:06:05]} bxc5 {[%emt 0:09:44]} 13. Na4 {[%emt 0:16:49]} Ba6 {[%emt 0:01:31]} 14. Re1 {[%emt 0:01:01]} Ncb4 {[%emt 0:01:12]} 15. Bf1 {[%emt 0:08:16]} Bxf1 {[%emt 0:05:52]} 16. Rxf1 {[%emt 0:01:09]} Bf6 {[%emt 0:04:16]} 17. a3 {[%emt 0:13:44]} Bxb2 {[%emt 0:02:36]} 18. Nxb2 {[%emt 0:00:07]} Qf6 $1 {[%emt 0:01:37]} 19. axb4 {[%emt 0:05:59]} Qxb2 {[%emt 0:01:55]} 20. bxc5 {[%emt 0:02:22]} Nc3 $1 {[%emt 0:07:22]} 21. Qd2 {[%emt 0:02:08]} Qxb3 {[%emt 0:02:29]} 22. Rxa7 {[%emt 0:01:40]} Rxc5 $11 {[%emt 0:03:14]} 23. Rfa1 {[%emt 0:03:15]} Ne4 {[%emt 0:03:55]} 24. Qd4 {[%emt 0:03:00]} Rc4 {[%emt 0:05:46]} 25. Nd2 {[%emt 0:01:17]} Rxd4 {[%emt 0:01:46]} 26. Nxb3 {[%emt 0:00:05]} Rb4 {[%emt 0:00:39]} 27. R1a4 {[%emt 0:01:07]} Rxa4 {[%emt 0:01:11]} 28. Rxa4 {[%emt 0:00:09]} Nd6 {[%emt 0:00:12]} 1/2-1/2